fUST/lending_fUST_20250607
["ID","MTS","AMOUNT","RATE_DAILY","PERIOD"]
[364828225,1749263432976,-309.66660681,0.00019233,2]
[364828226,1749263432988,-130.33339319,0.00019233,2]
[364828227,1749263432997,-440.0,0.00019233,2]
[364828228,1749263433007,-400.95813524,0.00019233,2]
[364828229,1749263433017,-440.0,0.00019233,2]
[364828230,1749263433027,-472.47922878,0.00019233,2]
[364828231,1749263433038,-440.0,0.00019233,2]
[364828232,1749263433048,-194.33849012,0.00019233,2]
[364828233,1749263433058,-440.0,0.00019233,2]
[364828234,1749263433068,-440.0,0.00019233,2]
[364828235,1749263433078,-440.0,0.00019233,2]
[364828236,1749263433091,-440.0,0.00019233,2]
[364828237,1749263433101,-440.0,0.00019233,2]
[364828238,1749263433111,-532.26312975,0.00019233,2]
[364828239,1749263433121,-440.0,0.00019233,2]
[364828240,1749263433130,-430.0,0.00019233,2]
[364828241,1749263433140,-440.0,0.00019233,2]
[364828242,1749263433151,-421.68218199,0.00019233,2]
[364828243,1749263433161,-440.0,0.00019233,2]
[364828244,1749263433171,-440.0,0.00019233,2]
[364828245,1749263433182,-440.0,0.00019233,2]
[364828246,1749263433194,-440.0,0.00019233,2]
[364828247,1749263433203,-440.0,0.00019233,2]
[364828248,1749263433213,-440.0,0.00019233,2]
[364828249,1749263433223,-440.0,0.00019233,2]
[364828250,1749263433233,-420.10536947,0.00019233,2]
[364828251,1749263433243,-440.0,0.00019233,2]
[364828252,1749263433254,-190.1771151,0.00019233,2]
[364828253,1749263433263,-440.0,0.00019233,2]
[364828254,1749263433274,-440.0,0.00019233,2]
[364828255,1749263433284,-440.0,0.00019233,2]
[364828256,1749263433293,-440.0,0.00019233,2]
[364828257,1749263433302,-340.0,0.00019233,2]
[364828258,1749263433316,-440.0,0.00019233,2]
[364828259,1749263433329,-339.8371341,0.00019233,2]
[364828260,1749263433343,-440.0,0.00019233,2]
[364828261,1749263433357,-413.5421688,0.00019233,2]
[364828262,1749263433370,-120.0926083,0.00019233,2]
[364828297,1749263438467,-500.0,0.00019231,2]
[364828300,1749263438480,-500.0,0.00019231,2]
[364828302,1749263438491,-500.0,0.00019231,2]
[364828304,1749263438505,-500.0,0.00019231,2]
[364828305,1749263438516,-500.0,0.00019231,2]
[364828306,1749263438527,-500.0,0.00019231,2]
[364828308,1749263438537,-486.53345812,0.00019231,2]
[364828310,1749263438548,-500.0,0.00019231,2]
[364828312,1749263438559,-437.7063397,0.00019231,2]
[364828314,1749263438572,-62.2936603,0.00019231,2]
[364828316,1749263438583,-500.0,0.00019231,2]
[364828318,1749263438594,-500.0,0.00019231,2]
[364828320,1749263438606,-474.02542865,0.00019231,2]
[364828323,1749263438625,-25.97457135,0.00019231,2]
[364828325,1749263438636,-500.0,0.00019231,2]
[364828327,1749263438647,-500.0,0.00019231,2]
[364828329,1749263438659,-214.37838683,0.00019231,2]
[364828331,1749263438670,-500.0,0.00019231,2]
[364828333,1749263438681,-303.05966157,0.00019232,2]
[364828335,1749263438693,-440.0,0.00019232,2]
[364828338,1749263438704,-440.0,0.00019232,2]
[364828341,1749263438730,-319.9073917,0.00019233,2]
[364828344,1749263438749,-458.17,0.00019233,2]
[364828346,1749263438762,-440.0,0.00019233,2]
[364828348,1749263438775,-440.0,0.00019233,2]
[364828351,1749263438790,-440.0,0.00019233,2]
[364828353,1749263438802,-440.0,0.00019233,2]
[364828355,1749263438815,-517.03,0.00019233,2]
[364828357,1749263438828,-440.0,0.00019233,2]
[364828359,1749263438841,-864.02,0.00019233,2]
[364828362,1749263438853,-440.0,0.00019233,2]
[364828364,1749263438865,-440.0,0.00019233,2]
[364828366,1749263438877,-761.35,0.00019233,2]
[364828368,1749263438889,-440.0,0.00019233,2]
[364828370,1749263438901,-440.0,0.00019233,2]
[364828372,1749263438912,-462.22815629,0.00019233,2]
[364828374,1749263438924,-440.0,0.00019233,2]
[364828377,1749263438936,-440.0,0.00019233,2]
[364828379,1749263438948,-440.0,0.00019233,2]
[364828381,1749263438961,-445.7589411,0.00019233,2]
[364828383,1749263438973,-438.62835091,0.00019233,2]
[364828385,1749263438985,-440.0,0.00019233,2]
[364828387,1749263438996,-440.0,0.00019233,2]
[364828389,1749263439007,-442.17673484,0.00019233,2]
[364828391,1749263439019,-440.0,0.00019233,2]
[364828394,1749263439030,-460.96160819,0.00019233,2]
[364828396,1749263439042,-277.52935552,0.00019233,2]
[364828398,1749263439053,-440.0,0.00019233,2]
[364828400,1749263439065,-445.31080644,0.00019233,2]
[364828402,1749263439076,-440.0,0.00019233,2]
[364828404,1749263439087,-444.35704521,0.00019233,2]
[364828406,1749263439098,-440.0,0.00019233,2]
[364828408,1749263439110,-440.0,0.00019233,2]
[364828410,1749263439122,-440.58477546,0.00019233,2]
[364828412,1749263439133,-495.49887423,0.00019233,2]
[364828414,1749263439146,-440.0,0.00019233,2]
[364828416,1749263439158,-440.0,0.00019233,2]
[364828419,1749263439170,-440.0,0.00019233,2]
[364828421,1749263439181,-440.0,0.00019233,2]
[364828423,1749263439193,-435.03460497,0.00019233,2]
[364828425,1749263439205,-440.0,0.00019233,2]
[364828427,1749263439216,-430.0,0.00019233,2]
[364828429,1749263439228,-440.0,0.00019233,2]
[364828431,1749263439240,-430.0,0.00019233,2]
[364828434,1749263439252,-327.19045018,0.00019233,2]
[364828453,1749263439451,-440.0,0.00019233,2]
[364828455,1749263439469,-440.0,0.00019233,2]
[364828456,1749263439479,-430.0,0.00019233,2]
[364828457,1749263439490,-433.46688363,0.00019233,2]
[364828458,1749263439500,-440.0,0.00019233,2]
[364828459,1749263439510,-440.0,0.00019233,2]
[364828460,1749263439520,-440.0,0.00019233,2]
[364828461,1749263439529,-440.0,0.00019233,2]
[364828462,1749263439539,-440.0,0.00019233,2]
[364828463,1749263439548,-440.0,0.00019233,2]
[364828464,1749263439558,-430.0,0.00019233,2]
[364828465,1749263439567,-440.0,0.00019233,2]
[364828466,1749263439577,-440.0,0.00019233,2]
[364828467,1749263439588,-440.0,0.00019233,2]
[364828468,1749263439598,-439.74926476,0.00019233,2]
[364828469,1749263439608,-440.0,0.00019233,2]
[364828470,1749263439618,-1048.51,0.00019233,2]
[364828471,1749263439628,-440.0,0.00019233,2]
[364828472,1749263439638,-440.0,0.00019233,2]
[364828473,1749263439649,-406.5910803,0.00019234,2]
[364828474,1749263439659,-440.0,0.00019234,2]
[364828475,1749263439668,-440.0,0.00019234,2]
[364828476,1749263439678,-440.0,0.00019234,2]
[364828477,1749263439688,-440.0,0.00019234,2]
[364828478,1749263439698,-453.5303612,0.00019234,2]
[364828479,1749263439709,-440.0,0.00019234,2]
[364828480,1749263439719,-440.0,0.00019234,2]
[364828481,1749263439729,-533.17999333,0.00019234,2]
[364828482,1749263439741,-440.0,0.00019234,2]
[364828483,1749263439750,-440.0,0.00019234,2]
[364828484,1749263439759,-440.0,0.00019234,2]
[364828485,1749263439768,-440.0,0.00019234,2]
[364828486,1749263439779,-440.0,0.00019234,2]
[364828488,1749263439788,-238.38541564,0.00019234,2]
[364828490,1749263439797,-444.02298301,0.00019234,2]
[364828492,1749263439808,-403.75576383,0.00019234,2]
[364828494,1749263439819,-503.19527479,0.00019234,2]
[364828496,1749263439830,-445.5969923,0.00019234,2]
[364828497,1749263439842,-440.0,0.00019234,2]
[364828499,1749263439851,-449.97283349,0.00019234,2]
[364828501,1749263439863,-452.87713543,0.00019234,2]
[364828504,1749263439875,-440.0,0.00019234,2]
[364828506,1749263439884,-430.0,0.00019234,2]
[364828508,1749263439893,-440.0,0.00019235,2]
[364828510,1749263439903,-440.0,0.00019235,2]
[364828512,1749263439912,-445.814237,0.00019235,2]
[364828514,1749263439921,-440.0,0.00019235,2]
[364828515,1749263439931,-440.0,0.00019235,2]
[364828517,1749263439943,-406.43642034,0.00019235,2]
[364828520,1749263439953,-444.87611727,0.00019235,2]
[364828521,1749263439964,-440.0,0.00019235,2]
[364828523,1749263439974,-440.0,0.00019235,2]
[364828526,1749263439984,-437.83320023,0.00019235,2]
[364828528,1749263439994,-440.0,0.00019235,2]
[364828530,1749263440003,-440.0,0.00019235,2]
[364828532,1749263440012,-482.85335105,0.00019235,2]
[364828533,1749263440023,-440.0,0.00019235,2]
[364828536,1749263440033,-444.99437482,0.00019235,2]
[364828538,1749263440043,-448.49876478,0.00019235,2]
[364828540,1749263440052,-571.35228802,0.00019235,2]
[364828542,1749263440062,-440.0,0.0001924,2]
[364828544,1749263440073,-247.12003691,0.0001924,2]
[364828546,1749263440082,-247.70991055,0.0001924,2]
[364828548,1749263440092,-437.2165518,0.0001924,2]
[364828550,1749263440102,-441.62611319,0.0001924,2]
[364828552,1749263440111,-151.903081,0.00019241,2]
[364828554,1749263440121,-154.748859,0.00019338,2]
[364828556,1749263440131,-440.0,0.00019506,2]
[364828558,1749263440140,-440.0,0.00019506,2]
[364828560,1749263440151,-636.8,0.00019506,2]
[364828562,1749263440160,-440.0,0.00019506,2]
[364828564,1749263440170,-440.0,0.00019506,2]
[364828566,1749263440180,-440.0,0.00019506,2]
[364828568,1749263440189,-410.0,0.00019507,2]
[364828570,1749263440199,-440.0,0.00019507,2]
[364828572,1749263440209,-440.0,0.00019507,2]
[364828574,1749263440218,-440.0,0.00019507,2]
[364828576,1749263440228,-440.0,0.00019507,2]
[364828578,1749263440238,-410.0,0.00019507,2]
[364828580,1749263440248,-440.0,0.00019507,2]
[364828582,1749263440258,-410.0,0.00019507,2]
[364828584,1749263440267,-410.0,0.00019507,2]
[364828586,1749263440277,-419.45953224,0.00019507,2]
[364828588,1749263440286,-410.0,0.00019507,2]
[364828590,1749263440297,-440.0,0.00019507,2]
[364828591,1749263440307,-410.0,0.00019507,2]
[364828593,1749263440316,-424.62122896,0.00019507,2]
[364828595,1749263440326,-410.0,0.00019507,2]
[364828597,1749263440338,-410.0,0.00019507,2]
[364828600,1749263440348,-400.0,0.00019507,2]
[364828602,1749263440358,-440.0,0.00019507,2]
[364828604,1749263440367,-440.0,0.00019507,2]
[364828605,1749263440377,-440.0,0.00019507,2]
[364828607,1749263440386,-410.0,0.00019507,2]
[364828610,1749263440397,-440.0,0.00019507,2]
[364828612,1749263440406,-410.0,0.00019507,2]
[364828613,1749263440416,-440.0,0.00019507,2]
[364828616,1749263440427,-440.0,0.00019507,2]
[364828617,1749263440436,-440.0,0.00019507,2]
[364828620,1749263440447,-440.0,0.00019507,2]
[364828622,1749263440456,-430.0,0.00019507,2]
[364828624,1749263440466,-517.03,0.00019507,2]
[364828626,1749263440476,-501.83,0.00019507,2]
[364828628,1749263440485,-864.02,0.00019507,2]
[364828629,1749263440495,-457.61042507,0.00019507,2]
[364828632,1749263440506,-440.0,0.00019507,2]
[364828634,1749263440518,-761.35,0.00019507,2]
[364828636,1749263440527,-440.0,0.00019507,2]
[364828638,1749263440538,-440.0,0.00019507,2]
[364828640,1749263440547,-440.0,0.00019507,2]
[364828642,1749263440557,-440.0,0.00019507,2]
[364828644,1749263440567,-484.05,0.00019507,2]
[364828646,1749263440577,-486.42,0.00019507,2]
[364828648,1749263440586,-440.0,0.00019507,2]
[364828650,1749263440596,-440.0,0.00019507,2]
[364828652,1749263440605,-440.0,0.00019507,2]
[364828654,1749263440614,-440.0,0.00019507,2]
[364828656,1749263440623,-527.50500775,0.00019507,2]
[364828658,1749263440633,-440.0,0.00019507,2]
[364828660,1749263440644,-440.0,0.00019507,2]
[364828662,1749263440654,-440.0,0.00019507,2]
[364828664,1749263440663,-440.0,0.00019507,2]
[364828666,1749263440673,-440.0,0.00019507,2]
[364828668,1749263440683,-440.0,0.00019507,2]
[364828670,1749263440693,-440.0,0.00019507,2]
[364828672,1749263440702,-440.0,0.00019507,2]
[364828674,1749263440712,-440.0,0.00019507,2]
[364828676,1749263440721,-440.0,0.00019507,2]
[364828678,1749263440732,-440.0,0.00019507,2]
[364828680,1749263440746,-1048.51,0.00019507,2]
[364828682,1749263440755,-440.0,0.00019507,2]
[364828685,1749263440776,-193.63569838,0.00019507,2]
[364828688,1749263440788,-444.37026693,0.00019508,2]
[364828690,1749263440797,-450.0254645,0.00019508,2]
[364828691,1749263440807,-189.84,0.00019508,2]
[364828693,1749263440818,-187.02358768,0.00019509,2]
[364828696,1749263440829,-440.96631272,0.00019509,2]
[364828698,1749263440839,-449.79694498,0.00019509,2]
[364828700,1749263440848,-557.28511718,0.00019509,2]
[364828702,1749263440858,-440.0,0.00019509,2]
[364828704,1749263440868,-439.24169734,0.00019509,2]
[364828706,1749263440879,-430.0,0.00019509,2]
[364828708,1749263440889,-430.0,0.00019509,2]
[364828710,1749263440898,-430.0,0.00019509,2]
[364828712,1749263440909,-430.0,0.00019509,2]
[364828714,1749263440920,-430.0,0.00019509,2]
[364828716,1749263440929,-440.0,0.00019509,2]
[364828718,1749263440939,-440.0,0.00019509,2]
[364828720,1749263440949,-440.0,0.00019509,2]
[364828722,1749263440959,-380.86624157,0.00019509,2]
[364828724,1749263440968,-440.0,0.00019509,2]
[364828726,1749263440977,-440.0,0.00019509,2]
[364828728,1749263440987,-440.0,0.00019509,2]
[364828730,1749263440997,-401.40974133,0.00019509,2]
[364828732,1749263441007,-401.70148269,0.00019509,2]
[364828734,1749263441016,-401.88033197,0.00019509,2]
[364828736,1749263441029,-440.0,0.00019509,2]
[364828738,1749263441039,-524.07061984,0.00019509,2]
[364828740,1749263441050,-440.0,0.00019509,2]
[364828742,1749263441059,-400.61325322,0.00019509,2]
[364828744,1749263441069,-440.0,0.00019509,2]
[364828746,1749263441078,-400.92727989,0.00019509,2]
[364828748,1749263441088,-401.28266935,0.00019509,2]
[364828751,1749263441099,-401.35652486,0.00019509,2]
[364828753,1749263441109,-400.48184674,0.00019509,2]
[364828755,1749263441119,-440.0,0.00019509,2]
[364828757,1749263441129,-401.24653265,0.00019509,2]
[364828759,1749263441138,-440.0,0.00019509,2]
[364828761,1749263441148,-440.0,0.00019509,2]
[364828763,1749263441158,-557.52864965,0.00019509,2]
[364828765,1749263441168,-440.0,0.00019509,2]
[364828767,1749263441178,-440.0,0.00019509,2]
[364828769,1749263441187,-440.0,0.00019509,2]
[364828771,1749263441197,-440.0,0.00019509,2]
[364828773,1749263441207,-440.0,0.00019509,2]
[364828775,1749263441216,-440.0,0.00019509,2]
[364828777,1749263441226,-400.88630178,0.00019509,2]
[364828779,1749263441235,-440.0,0.00019509,2]
[364828781,1749263441244,-440.0,0.00019509,2]
[364828783,1749263441253,-402.15294878,0.00019509,2]
[364828785,1749263441262,-370.85700147,0.00019509,2]
[364828787,1749263441271,-440.0,0.00019509,2]
[364828789,1749263441281,-440.0,0.00019509,2]
[364828791,1749263441291,-185.32724157,0.00019509,2]
[364828793,1749263441300,-440.0,0.00019509,2]
[364828795,1749263441310,-440.0,0.00019509,2]
[364828797,1749263441319,-425.10290549,0.00019509,2]
[364828799,1749263441330,-396.62771874,0.00019509,2]
[364828801,1749263441340,-440.0,0.00019509,2]
[364828803,1749263441349,-440.0,0.00019509,2]
[364828805,1749263441359,-394.1402983,0.00019509,2]
[364828807,1749263441370,-334.46002821,0.00019509,2]
[364828809,1749263441380,-423.0909058,0.00019509,2]
[364828811,1749263441390,-440.0,0.00019509,2]
[364828813,1749263441400,-440.0,0.00019509,2]
[364828815,1749263441410,-249.09609857,0.00019509,2]
[364828817,1749263441420,-454.56013634,0.00019509,2]
[364828819,1749263441429,-440.0,0.00019509,2]
[364828821,1749263441440,-430.0,0.00019509,2]
[364828823,1749263441451,-440.0,0.00019509,2]
[364828825,1749263441460,-430.14055849,0.00019509,2]
[364828827,1749263441471,-440.0,0.00019509,2]
[364828829,1749263441481,-440.0,0.00019509,2]
[364828831,1749263441490,-423.67424316,0.00019509,2]
[364828833,1749263441500,-440.0,0.00019509,2]
[364828835,1749263441510,-440.0,0.00019509,2]
[364828837,1749263441519,-440.0,0.00019509,2]
[364828839,1749263441529,-440.0,0.00019509,2]
[364828841,1749263441539,-440.0,0.00019509,2]
[364828843,1749263441549,-272.28709047,0.00019509,2]
[364828845,1749263441558,-416.29344934,0.00019509,2]
[364828847,1749263441568,-440.0,0.00019509,2]
[364828849,1749263441578,-431.07492484,0.00019509,2]
[364828851,1749263441587,-440.0,0.00019509,2]
[364828853,1749263441597,-436.87438436,0.00019509,2]
[364828855,1749263441606,-440.0,0.00019509,2]
[364828857,1749263441616,-401.30290174,0.00019509,2]
[364828859,1749263441625,-440.0,0.00019509,2]
[364828861,1749263441635,-446.99495305,0.00019509,2]
[364828863,1749263441645,-400.0,0.00019509,2]
[364828865,1749263441654,-205.93978856,0.00019509,2]
[364828867,1749263441665,-463.38417461,0.00019509,2]
[364828869,1749263441675,-400.0,0.00019509,2]
[364828871,1749263441685,-432.76339004,0.00019509,2]
[364828873,1749263441695,-440.0,0.00019509,2]
[364828875,1749263441705,-160.17779719,0.00019509,2]
[364828877,1749263441715,-444.72178327,0.00019509,2]
[364828879,1749263441724,-505.20528023,0.00019509,2]
[364828881,1749263441736,-444.67062512,0.00019509,2]
[364828883,1749263441747,-464.97752175,0.00019509,2]
[364828885,1749263441756,-451.62191499,0.00019509,2]
[364828887,1749263441766,-444.96893586,0.00019509,2]
[364828889,1749263441775,-440.0,0.00019509,2]
[364828891,1749263441786,-424.18831131,0.00019509,2]
[364828893,1749263441796,-440.0,0.00019509,2]
[364828895,1749263441806,-501.77,0.00019509,2]
[364828897,1749263441817,-427.84091838,0.00019509,2]
[364828899,1749263441827,-400.70451454,0.00019509,2]
[364828901,1749263441836,-451.66602448,0.00019509,2]
[364828903,1749263441846,-462.19905113,0.00019509,2]
[364828905,1749263441856,-448.30425217,0.00019509,2]
[364828907,1749263441865,-441.34750329,0.00019509,2]
[364828909,1749263441875,-453.76425296,0.00019509,2]
[364828911,1749263441884,-451.55901371,0.00019509,2]
[364828913,1749263441894,-440.0,0.00019509,2]
[364828915,1749263441903,-447.97478659,0.00019509,2]
[364828917,1749263441913,-443.23047862,0.00019509,2]
[364828919,1749263441923,-452.67523757,0.00019509,2]
[364828921,1749263441933,-1284.45,0.00019509,2]
[364828923,1749263441943,-322.65049874,0.00019509,2]
[364828925,1749263441953,-463.51486158,0.00019509,2]
[364828927,1749263441962,-449.68130432,0.00019509,2]
[364828929,1749263441972,-440.0,0.00019509,2]
[364828931,1749263441982,-853.1,0.00019509,2]
[364828933,1749263441991,-326.25876271,0.00019514,2]
[364828935,1749263442000,-449.90769174,0.00019573,2]
[364828937,1749263442010,-745.29,0.00019773,3]
[364828939,1749263442020,-248.43,0.00019776,3]
[364828941,1749263442030,-220.0,0.0001978,2]
[364828943,1749263442039,-636.8,0.0001978,2]
[364828945,1749263442049,-440.0,0.0001978,2]
[364828948,1749263442059,-440.0,0.0001978,2]
[364828950,1749263442069,-440.0,0.0001978,2]
[364828952,1749263442078,-517.03,0.00019781,2]
[364828954,1749263442088,-864.02,0.00019781,2]
[364828956,1749263442097,-761.35,0.00019781,2]
[364828958,1749263442108,-440.0,0.00019781,2]
[364828960,1749263442117,-440.0,0.00019781,2]
[364828961,1749263442127,-440.0,0.00019781,2]
[364828962,1749263442136,-424.24401069,0.00019781,2]
[364828963,1749263442145,-440.0,0.00019781,2]
[364828964,1749263442155,-440.0,0.00019781,2]
[364828965,1749263442164,-440.0,0.00019781,2]
[364828966,1749263442173,-440.0,0.00019781,2]
[364828967,1749263442182,-440.0,0.00019781,2]
[364828968,1749263442192,-440.0,0.00019781,2]
[364828969,1749263442201,-440.0,0.00019781,2]
[364828970,1749263442210,-440.0,0.00019781,2]
[364828972,1749263442220,-440.0,0.00019781,2]
[364828973,1749263442231,-440.0,0.00019781,2]
[364828975,1749263442241,-440.0,0.00019781,2]
[364828977,1749263442251,-1048.51,0.00019781,2]
[364828979,1749263442261,-440.0,0.00019781,2]
[364828981,1749263442271,-440.0,0.00019783,2]
[364828984,1749263442281,-440.0,0.00019783,2]
[364828986,1749263442293,-440.0,0.00019783,2]
[364828988,1749263442302,-396.07624162,0.00019783,2]
[364828990,1749263442313,-440.0,0.00019783,2]
[364828992,1749263442324,-444.59796381,0.00019783,2]
[364828994,1749263442333,-392.27098529,0.00019783,2]
[364828996,1749263442343,-440.0,0.00019783,2]
[364828998,1749263442353,-440.0,0.00019783,2]
[364829000,1749263442365,-443.70219922,0.00019783,2]
[364829002,1749263442374,-440.0,0.00019783,2]
[364829004,1749263442384,-447.31893698,0.00019783,2]
[364829006,1749263442396,-440.0,0.00019783,2]
[364829008,1749263442406,-440.0,0.00019783,2]
[364829010,1749263442415,-402.67107503,0.00019783,2]
[364829012,1749263442425,-440.0,0.00019783,2]
[364829014,1749263442434,-184.037979,0.00019783,2]
[364829016,1749263442445,-473.76295639,0.00019783,2]
[364829018,1749263442454,-442.04993921,0.00019783,2]
[364829020,1749263442464,-443.04056934,0.00019783,2]
[364829022,1749263442474,-444.66432277,0.00019783,2]
[364829024,1749263442485,-363.0701447,0.00019783,2]
[364829026,1749263442494,-442.81183894,0.00019783,2]
[364829028,1749263442505,-440.0,0.00019783,2]
[364829030,1749263442514,-16.82947604,0.00019783,2]
[364829037,1749263442572,-393.17052396,0.00019783,2]
[364829040,1749263442582,-413.56700865,0.00019783,2]
[364829041,1749263442592,-422.98628406,0.00019783,2]
[364829044,1749263442603,-410.0,0.00019783,2]
[364829046,1749263442613,-387.58342151,0.00019783,2]
[364829048,1749263442623,-177.1353395,0.00019783,2]
[364829050,1749263442636,-235.78258847,0.00019783,2]
[364829052,1749263442646,-440.0,0.00019783,2]
[364829054,1749263442656,-440.0,0.00019783,2]
[364829056,1749263442666,-440.0,0.00019783,2]
[364829058,1749263442676,-440.0,0.00019783,2]
[364829060,1749263442685,-156.98623839,0.00019783,2]
[364829062,1749263442695,-475.13762339,0.00019783,2]
[364829064,1749263442705,-440.0,0.00019783,2]
[364829080,1749263442850,-440.0,0.00019783,2]
[364829082,1749263442860,-440.0,0.00019783,2]
[364829084,1749263442870,-440.0,0.00019783,2]
[364829086,1749263442880,-440.0,0.00019783,2]
[364829088,1749263442891,-440.0,0.00019783,2]
[364829090,1749263442901,-311.55963592,0.00019783,2]
[364829093,1749263442910,-501.77,0.00019783,2]
[364829095,1749263442920,-440.0,0.00019783,2]
[364829097,1749263442930,-1284.45,0.00019783,2]
[364829099,1749263442939,-410.0,0.00019783,2]
[364829102,1749263442949,-853.1,0.00019783,2]
[364829103,1749263442959,-445.41202561,0.000199,2]
[364829105,1749263442969,-423.90693687,0.00020026,2]
[364829108,1749263442980,-160.0,0.00020026,2]
[364829110,1749263442990,-160.0,0.00020026,2]
[364829112,1749263442999,-229.56495552,0.00020029,2]
[364829114,1749263443009,-11851.94353573,0.00020029,2]
[364829115,1749263443019,-213.01382694,0.00020029,2]
[364829118,1749263443030,-834.52263295,0.00020029,2]
[364829120,1749263443040,-160.0,0.00020029,2]
[364829122,1749263443050,-600.0,0.00020052,2]
[364829124,1749263443061,-636.8,0.00020054,2]
[364829126,1749263443071,-440.0,0.00020054,2]
[364829128,1749263443081,-440.0,0.00020054,2]
[364829130,1749263443091,-440.0,0.00020054,2]
[364829132,1749263443101,-517.03,0.00020055,2]
[364829134,1749263443110,-864.02,0.00020055,2]
[364829136,1749263443120,-761.35,0.00020055,2]
[364829138,1749263443129,-440.0,0.00020055,2]
[364829140,1749263443139,-440.0,0.00020055,2]
[364829143,1749263443150,-440.0,0.00020055,2]
[364829145,1749263443160,-440.0,0.00020055,2]
[364829147,1749263443170,-440.0,0.00020055,2]
[364829149,1749263443179,-440.0,0.00020055,2]
[364829151,1749263443189,-440.0,0.00020055,2]
[364829153,1749263443201,-440.0,0.00020055,2]
[364829155,1749263443210,-308.24621237,0.00020055,2]
[364829158,1749263443219,-440.0,0.00020055,2]
[364829160,1749263443229,-499.2,0.00020055,2]
[364829162,1749263443239,-440.0,0.00020055,2]
[364829164,1749263443249,-440.0,0.00020055,2]
[364829166,1749263443259,-1048.51,0.00020055,2]
[364829168,1749263443268,-440.0,0.00020055,2]
[364829170,1749263443278,-440.0,0.00020057,2]
[364829172,1749263443288,-440.0,0.00020057,2]
[364829174,1749263443297,-440.0,0.00020057,2]
[364829176,1749263443307,-440.0,0.00020057,2]
[364829178,1749263443316,-440.0,0.00020057,2]
[364829180,1749263443326,-501.77,0.00020057,2]
[364829182,1749263443336,-440.0,0.00020057,2]
[364829184,1749263443346,-1284.45,0.00020057,2]
[364829186,1749263443356,-853.1,0.00020057,2]
[364829188,1749263443366,-445.41202561,0.00020072,2]
[364829190,1749263443377,-164.079,0.00020152,2]
[364829192,1749263443387,-275.266874,0.00020187,2]
[364829194,1749263443396,-445.41202561,0.00020245,2]
[364829196,1749263443406,-636.8,0.00020328,2]
[364829198,1749263443416,-440.0,0.00020328,2]
[364829200,1749263443426,-206.23702537,0.00020328,2]
[364829202,1749263443436,-440.0,0.00020328,2]
[364829205,1749263443446,-517.03,0.00020329,2]
[364829207,1749263443456,-864.02,0.00020329,2]
[364829209,1749263443465,-761.35,0.00020329,2]
[364829211,1749263443475,-512.8572704,0.00020329,2]
[364829213,1749263443485,-440.0,0.00020329,2]
[364829215,1749263443495,-440.0,0.00020329,2]
[364829217,1749263443504,-233.10500168,0.00020329,2]
[364829219,1749263443514,-421.26145995,0.00020329,2]
[364829221,1749263443527,-18.73854005,0.00020329,2]
[364829223,1749263443536,-1048.51,0.00020329,2]
[364829225,1749263443546,-440.0,0.00020329,2]
[364829227,1749263443555,-440.0,0.00020331,2]
[364829229,1749263443565,-440.0,0.00020331,2]
[364829231,1749263443574,-440.0,0.00020331,2]
[364829233,1749263443585,-440.0,0.00020331,2]